[Event "Amsterdam Chess Open 2024"]
[Site "Amsterdam"]
[Date "2024.11.01"]
[Round "1.8"]
[White "Braun, Vitali"]
[Black "Bracke, Milan"]
[Result "1-0"]
[ECO "D35"]
[WhiteElo "2339"]
[BlackElo "2063"]
[Annotator "RC"]
[PlyCount "65"]
[EventDate "2024.10.31"]
[EventType "swiss"]
[EventCountry "NED"]
[SourceTitle "playchess.com"]
[Source "ChessBase"]
[SourceQuality "1"]
[TimeControl "5400+30"]

1. d4 {[%emt 13:53:58]} d5 {[%emt 0:00:04]} 2. c4 {[%emt 0:00:08]} e6 {[%emt 0:00:06]} 3. Nc3 {[%emt 0:00:05]} Nf6 {[%emt 0:00:05]} 4. cxd5 {[%emt 0:00:16]} exd5 {[%emt 0:00:06]} 5. Bg5 {[%emt 0:00:07]} c6 {[%emt 0:00:05]} 6. e3 {[%emt 0:00:28]} h6 {[%emt 0:00:23]} 7. Bh4 {[%emt 0:00:06]} Be7 {[%emt 0:00:08]} 8. Bd3 {[%emt 0:01:12]} O-O {[%emt 0:00:13]} 9. Nge2 {[%emt 0:00:57]} Ne8 {[%emt 0:00:15]} 10. Bg3 {[%emt 0:04:50]} Nd6 {[%emt 0:00:15]} 11. Qc2 {[%emt 0:00:09]} Re8 {[%emt 0:01:45]} 12. O-O {[%emt 0:01:57]} Bf8 {[%emt 0:00:16]} 13. b4 {[%emt 0:05:12]} Nd7 {[%emt 0:01:33]} 14. b5 {[%emt 0:01:11]} Nb6 {[%emt 0:00:19]} 15. a4 {[%emt 0:06:12]} Nbc4 {[%emt 0:06:15]} 16. Nc1 {[%emt 0:14:06]} Bd7 {[%emt 0:06:26]} 17. bxc6 {[%emt 0:12:05]} bxc6 {[%emt 0:02:11]} 18. Nb3 {[%emt 0:01:09]} h5 {[%emt 0:13:31]} 19. Nc5 {[%emt 0:07:54]} Qe7 {[%emt 0:16:11]} 20. Rfe1 {[%emt 0:06:52]} Be6 {[%emt 0:16:13]} 21. f3 {[%emt 0:03:30]} Qg5 {[%emt 0:05:34]} 22. Qf2 {[%emt 0:05:49]} Be7 {[%emt 0:03:20]} 23. h4 {[%emt 0:05:22]} Qh6 {[%emt 0:06:29]} 24. Bf4 {[%emt 0:03:38]} g5 {[%emt 0:00:09]} 25. hxg5 {[%emt 0:00:50]} Bxg5 {[%emt 0:00:18]} 26. Qg3 {[%emt 0:07:00]} f6 {[%emt 0:04:38]} 27. Nxe6 {[%emt 0:01:20]} Rxe6 {[%emt 0:04:28]} 28. Bxd6 {[%emt 0:00:18]} h4 {[%emt 0:06:09]} 29. Qg4 {[%emt 0:00:18]} f5 {[%emt 0:02:59]} 30. Bxf5 {[%emt 0:00:27]} Rxe3 {[%emt 0:00:48]} 31. Bf4 {[%emt 0:00:58]} Rxc3 {[%emt 0:03:06]} 32. Bxg5 {[%emt 0:00:12]} Qg7 {[%emt 0:00:29]} 33. Be6+ {[%emt 0:00:42]} 1-0

[Event "Amsterdam Chess Open 2024"]
[Site "Amsterdam"]
[Date "2024.11.01"]
[Round "1.9"]
[White "Groenewoud, Joel"]
[Black "Kazarian, Anna-Maja"]
[Result "0-1"]
[ECO "C02"]
[WhiteElo "2023"]
[BlackElo "2178"]
[Annotator "RC"]
[PlyCount "84"]
[EventDate "2024.10.31"]
[EventType "swiss"]
[EventCountry "NED"]
[SourceTitle "playchess.com"]
[Source "ChessBase"]
[SourceQuality "1"]
[TimeControl "5400+30"]

1. e4 {[%emt 0:00:02]} e6 {[%emt 0:00:04]} 2. d4 {[%emt 0:00:04]} d5 {[%emt 0:00:04]} 3. e5 {[%emt 0:00:05]} c5 {[%emt 0:00:04]} 4. c3 {[%emt 0:00:07]} Bd7 {[%emt 0:00:16]} 5. Nf3 {[%emt 0:00:14]} Nc6 {[%emt 0:00:32]} 6. Be2 {[%emt 0:00:09]} Nge7 {[%emt 0:00:20]} 7. O-O {[%emt 0:00:20]} Nf5 {[%emt 0:01:13]} 8. Bd3 {[%emt 0:00:40]} cxd4 {[%emt 0:12:52]} 9. Bxf5 {[%emt 0:00:47]} exf5 {[%emt 0:00:04]} 10. cxd4 {[%emt 0:00:11]} Qb6 {[%emt 0:07:50]} 11. Nc3 {[%emt 0:02:41]} Be6 {[%emt 0:00:11]} 12. a3 {[%emt 0:04:35]} Be7 {[%emt 0:04:35]} 13. b4 {[%emt 0:01:30]} Rc8 {[%emt 0:02:09]} 14. Qd3 {[%emt 0:09:36]} h6 {[%emt 0:11:47]} 15. h4 {[%emt 0:11:39]} Qd8 {[%emt 0:04:37]} 16. h5 {[%emt 0:02:27]} g5 {[%emt 0:09:49]} 17. hxg6 {[%emt 0:03:34]} fxg6 {[%emt 0:00:53]} 18. Bd2 {[%emt 0:05:46]} g5 {[%emt 0:03:27]} 19. Rac1 {[%emt 0:07:15]} Kf7 {[%emt 0:08:31]} 20. Na4 {[%emt 0:11:36]} b6 {[%emt 0:09:52]} 21. Rc2 {[%emt 0:02:24]} g4 {[%emt 0:02:39]} 22. Nh2 {[%emt 0:01:59]} Qd7 {[%emt 0:06:04]} 23. Nb2 {[%emt 0:06:05]} f4 {[%emt 0:02:34]} 24. Re1 {[%emt 0:15:21]} Bf5 {[%emt 0:04:00]} 25. Qf1 {[%emt 0:00:42]} Nxd4 {[%emt 0:03:21]} 26. Rxc8 {[%emt 0:00:09]} Rxc8 {[%emt 0:02:06]} 27. Bxf4 {[%emt 0:00:16]} Rc2 {[%emt 0:01:09]} 28. Nd1 {[%emt 0:00:45]} Ne6 {[%emt 0:01:29]} 29. Bg3 {[%emt 0:02:13]} Rd2 {[%emt 0:00:58]} 30. Kh1 {[%emt 0:02:44]} h5 {[%emt 0:01:22]} 31. f3 {[%emt 0:01:07]} Bd3 {[%emt 0:00:03]} 32. Qg1 {[%emt 0:00:07]} d4 {[%emt 0:00:59]} 33. fxg4 {[%emt 0:00:40]} h4 {[%emt 0:00:25]} 34. Bf2 {[%emt 0:00:18]} h3 {[%emt 0:00:34]} 35. Nf3 {[%emt 0:00:40]} Ra2 {[%emt 0:00:26]} 36. Qh2 {[%emt 0:01:34]} Be2 {[%emt 0:00:33]} 37. Rxe2 {[%emt 0:04:17]} Rxe2 {[%emt 0:00:08]} 38. Qxh3 {[%emt 0:00:10]} Qa4 {[%emt 0:00:44]} 39. Qh5+ {[%emt 0:03:20]} Kg7 {[%emt 0:00:40]} 40. Qf5 {[%emt 0:00:55]} Qxd1+ {[%emt 0:00:10]} 41. Kh2 {[%emt 0:00:07]} Rxf2 {[%emt 0:00:40]} 42. Qxe6 {[%emt 0:00:09]} Qxf3 {[%emt 0:00:33]} 0-1

[Event "Amsterdam Chess Open 2024"]
[Site "Amsterdam"]
[Date "2024.11.01"]
[Round "1.10"]
[White "Saine, Zachary"]
[Black "Stolwijk, Colin"]
[Result "0-1"]
[ECO "B12"]
[WhiteElo "2038"]
[BlackElo "2230"]
[Annotator "RC"]
[PlyCount "78"]
[EventDate "2024.10.31"]
[EventType "swiss"]
[EventCountry "NED"]
[SourceTitle "playchess.com"]
[Source "ChessBase"]
[SourceQuality "1"]
[TimeControl "5400+30"]

1. e4 {[%emt 0:00:05]} c6 {[%emt 0:00:05]} 2. d4 {[%emt 0:00:06]} d5 {[%emt 0:00:03]} 3. f3 {[%emt 0:00:05]} e6 {[%emt 0:00:08]} 4. Be3 {[%emt 0:00:14]} dxe4 {[%emt 0:00:40]} 5. Nd2 {[%emt 0:00:11]} exf3 {[%emt 0:00:50]} 6. Ngxf3 {[%emt 0:00:07]} Nf6 {[%emt 0:00:29]} 7. Bd3 {[%emt 0:00:06]} Nd5 {[%emt 0:06:26]} 8. Qe2 {[%emt 0:00:43]} Nd7 {[%emt 0:00:30]} 9. O-O-O {[%emt 0:06:49]} Qa5 {[%emt 0:16:04]} 10. Kb1 {[%emt 0:36:00]} b5 {[%emt 0:00:07]} 11. Ne4 {[%emt 0:01:47]} Nb4 {[%emt 0:15:45]} 12. a3 {[%emt 0:05:17]} Nxd3 {[%emt 0:06:08]} 13. Qxd3 {[%emt 0:00:06]} b4 {[%emt 0:00:25]} 14. axb4 {[%emt 0:00:52]} Bxb4 {[%emt 0:00:38]} 15. h4 {[%emt 0:10:30]} Ba6 {[%emt 0:02:37]} 16. c4 {[%emt 0:00:07]} Be7 {[%emt 0:08:08]} 17. Bf4 {[%emt 0:10:43]} Qf5 {[%emt 0:03:07]} 18. Nd6+ {[%emt 0:12:56]} Bxd6 {[%emt 0:00:07]} 19. Qxf5 {[%emt 0:00:05]} exf5 {[%emt 0:00:08]} 20. Rhe1+ {[%emt 0:00:55]} Kd8 {[%emt 0:01:00]} 21. Bxd6 {[%emt 0:00:07]} Bxc4 {[%emt 0:00:24]} 22. Re7 {[%emt 0:00:18]} Re8 {[%emt 0:13:37]} 23. Rde1 {[%emt 0:01:17]} Rxe7 {[%emt 0:05:33]} 24. Rxe7 {[%emt 0:00:18]} h6 {[%emt 0:00:16]} 25. h5 {[%emt 0:06:05]} Bd5 {[%emt 0:01:55]} 26. Ne5 {[%emt 0:02:00]} Nxe5 {[%emt 0:01:29]} 27. dxe5 {[%emt 0:00:05]} c5 {[%emt 0:07:38]} 28. Kc2 {[%emt 0:01:00]} a5 {[%emt 0:02:56]} 29. Rc7 {[%emt 0:01:59]} c4 {[%emt 0:02:54]} 30. Kc3 {[%emt 0:01:19]} a4 {[%emt 0:02:31]} 31. Kd4 {[%emt 0:00:22]} Ra5 {[%emt 0:00:35]} 32. Rc5 {[%emt 0:01:08]} Rxc5 {[%emt 0:00:03]} 33. Bxc5 {[%emt 0:00:04]} Bxg2 {[%emt 0:00:37]} 34. Bf8 {[%emt 0:00:04]} f4 {[%emt 0:01:20]} 35. Bxg7 {[%emt 0:02:31]} f3 {[%emt 0:00:13]} 36. Ke3 {[%emt 0:00:17]} c3 {[%emt 0:00:54]} 37. e6 {[%emt 0:00:57]} c2 {[%emt 0:00:49]} 38. Kd2 {[%emt 0:00:35]} f2 {[%emt 0:00:34]} 39. exf7 {[%emt 0:00:18]} c1=Q+ {[%emt 0:00:09]} 0-1

[Event "Amsterdam Chess Open 2024"]
[Site "Amsterdam"]
[Date "2024.11.01"]
[Round "1.11"]
[White "Pasti, Fabio"]
[Black "Wuijts, Johan"]
[Result "1-0"]
[ECO "C11"]
[WhiteElo "1881"]
[BlackElo "1994"]
[Annotator "RC"]
[PlyCount "55"]
[EventDate "2024.10.31"]
[EventType "swiss"]
[EventCountry "NED"]
[SourceTitle "playchess.com"]
[Source "ChessBase"]
[SourceQuality "1"]
[TimeControl "5400+30"]

1. e4 {[%emt 0:00:02]} e6 {[%emt 0:00:36]} 2. Nf3 {[%emt 0:00:05]} d5 {[%emt 0:00:54]} 3. Nc3 {[%emt 0:00:07]} Nf6 {[%emt 0:00:27]} 4. e5 {[%emt 0:00:07]} Nfd7 {[%emt 0:00:06]} 5. d4 {[%emt 0:00:04]} Be7 {[%emt 0:01:07]} 6. Bf4 {[%emt 0:01:09]} c5 {[%emt 0:01:47]} 7. dxc5 {[%emt 0:07:27]} Nxc5 {[%emt 0:05:59]} 8. Nd4 {[%emt 0:08:23]} a6 {[%emt 0:03:49]} 9. Qg4 {[%emt 0:01:19]} g5 {[%emt 0:02:09]} 10. Be3 {[%emt 0:07:40]} h5 {[%emt 0:02:59]} 11. Qg3 {[%emt 0:02:10]} Nc6 {[%emt 0:17:47]} 12. Nxc6 {[%emt 0:06:49]} bxc6 {[%emt 0:02:15]} 13. h4 {[%emt 0:04:28]} g4 {[%emt 0:16:05]} 14. Be2 {[%emt 0:08:32]} Rb8 {[%emt 0:00:28]} 15. b3 {[%emt 0:03:12]} Nd7 {[%emt 0:11:46]} 16. Bd2 {[%emt 0:10:24]} Qc7 {[%emt 0:02:38]} 17. Bf4 {[%emt 0:11:10]} c5 {[%emt 0:04:21]} 18. Nxd5 {[%emt 0:05:44]} Qc6 {[%emt 0:05:53]} 19. Nxe7 {[%emt 0:01:58]} Kxe7 {[%emt 0:00:06]} 20. O-O {[%emt 0:01:17]} Rb4 {[%emt 0:01:11]} 21. c3 {[%emt 0:01:53]} Rxf4 {[%emt 0:01:17]} 22. Qxf4 {[%emt 0:00:16]} Bb7 {[%emt 0:00:04]} 23. f3 {[%emt 0:01:52]} Rg8 {[%emt 0:00:18]} 24. Rad1 {[%emt 0:00:58]} Qc7 {[%emt 0:03:45]} 25. Rxd7+ {[%emt 0:05:13]} Qxd7 {[%emt 0:00:46]} 26. fxg4 {[%emt 0:00:18]} Ke8 {[%emt 0:01:27]} 27. g5 {[%emt 0:01:00]} f5 {[%emt 0:00:20]} 28. exf6 {[%emt 0:00:31]} 1-0

[Event "Amsterdam Chess Open 2024"]
[Site "Amsterdam"]
[Date "2024.11.01"]
[Round "1.12"]
[White "Baarslag, Ed"]
[Black "Pijlman, Rene"]
[Result "1-0"]
[ECO "A32"]
[WhiteElo "1993"]
[BlackElo "1881"]
[Annotator "RC"]
[PlyCount "33"]
[EventDate "2024.10.31"]
[EventType "swiss"]
[EventCountry "NED"]
[SourceTitle "playchess.com"]
[Source "ChessBase"]
[SourceQuality "1"]
[TimeControl "5400+30"]

1. Nf3 {[%emt 0:01:20]} c5 {[%emt 0:00:21]} 2. c4 {[%emt 0:00:13]} Nf6 {[%emt 0:00:09]} 3. d4 {[%emt 0:00:18]} e6 {[%emt 0:00:48]} 4. Nc3 {[%emt 0:01:19]} cxd4 {[%emt 0:02:15]} 5. Nxd4 {[%emt 0:02:00]} a6 {[%emt 0:00:21]} 6. a3 {[%emt 0:01:18]} d5 {[%emt 0:04:43]} 7. cxd5 {[%emt 0:01:59]} Nxd5 {[%emt 0:00:13]} 8. Bd2 {[%emt 0:02:05]} Bc5 {[%emt 0:02:12]} 9. Nb3 {[%emt 0:01:53]} Ba7 {[%emt 0:06:32]} 10. e4 {[%emt 0:04:26]} Ne7 {[%emt 0:01:31]} 11. Bg5 {[%emt 0:10:44]} Qxd1+ {[%emt 0:04:47]} 12. Rxd1 {[%emt 0:01:50]} Nbc6 {[%emt 0:00:06]} 13. Be2 {[%emt 0:02:04]} O-O {[%emt 0:02:23]} 14. O-O {[%emt 0:00:39]} Ng6 {[%emt 0:02:29]} 15. Kh1 {[%emt 0:03:23]} h6 {[%emt 0:04:30]} 16. Bc1 {[%emt 0:00:28]} e5 {[%emt 0:00:43]} 17. Be3 {[%emt 0:12:33]} 1-0

[Event "Amsterdam Chess Open 2024"]
[Site "Amsterdam"]
[Date "2024.11.01"]
[Round "1.13"]
[White "Timar, Yannick"]
[Black "Koelewijn, Alex"]
[Result "1-0"]
[ECO "C01"]
[WhiteElo "1881"]
[BlackElo "1985"]
[Annotator "RC"]
[PlyCount "47"]
[EventDate "2024.10.31"]
[EventType "swiss"]
[EventCountry "NED"]
[SourceTitle "playchess.com"]
[Source "ChessBase"]
[SourceQuality "1"]
[TimeControl "5400+30"]

1. e4 {[%emt 0:00:03]} e6 {[%emt 0:00:05]} 2. d4 {[%emt 0:00:05]} d5 {[%emt 0:00:05]} 3. exd5 {[%emt 0:00:09]} exd5 {[%emt 0:00:07]} 4. Nf3 {[%emt 0:00:21]} Bd6 {[%emt 0:00:55]} 5. h3 {[%emt 0:00:13]} Ne7 {[%emt 0:05:16]} 6. c4 {[%emt 0:02:15]} c6 {[%emt 0:00:26]} 7. Bd3 {[%emt 0:00:57]} dxc4 {[%emt 0:00:13]} 8. Bxc4 {[%emt 0:00:05]} O-O {[%emt 0:01:02]} 9. O-O {[%emt 0:00:20]} Bf5 {[%emt 0:07:17]} 10. Nc3 {[%emt 0:08:10]} b5 {[%emt 0:00:57]} 11. Bd3 {[%emt 0:01:49]} Bg6 {[%emt 0:07:06]} 12. Bg5 {[%emt 0:02:08]} f6 {[%emt 0:03:29]} 13. Be3 {[%emt 0:07:29]} b4 {[%emt 0:03:09]} 14. Ne4 {[%emt 0:02:41]} Nd5 {[%emt 0:00:09]} 15. Nh4 {[%emt 0:20:00]} f5 {[%emt 0:12:52]} 16. Bg5 {[%emt 0:05:17]} Be7 {[%emt 0:04:45]} 17. Bxe7 {[%emt 0:04:28]} Nxe7 {[%emt 0:01:59]} 18. Nxg6 {[%emt 0:02:04]} Nxg6 {[%emt 0:01:29]} 19. Nc5 {[%emt 0:01:21]} Qd5 {[%emt 0:00:09]} 20. Rc1 {[%emt 0:01:02]} Kh8 {[%emt 0:00:24]} 21. Bc4 {[%emt 0:00:49]} Qd6 {[%emt 0:00:40]} 22. Ne6 {[%emt 0:02:27]} Rf6 {[%emt 0:11:24]} 23. Ng5 {[%emt 0:01:41]} Qf8 {[%emt 0:03:19]} 24. Nxh7 {[%emt 0:01:56]} 1-0

[Event "Amsterdam Chess Open 2024"]
[Site "Amsterdam"]
[Date "2024.11.01"]
[Round "1.14"]
[White "Schoonackers, Jeroen"]
[Black "Damen, Josephine"]
[Result "1-0"]
[ECO "E92"]
[WhiteElo "1983"]
[BlackElo "1880"]
[Annotator "RC"]
[PlyCount "91"]
[EventDate "2024.10.31"]
[EventType "swiss"]
[EventCountry "NED"]
[SourceTitle "playchess.com"]
[Source "ChessBase"]
[SourceQuality "1"]
[TimeControl "5400+30"]

1. d4 {[%emt 0:00:04]} Nf6 {[%emt 0:00:05]} 2. c4 {[%emt 0:00:05]} g6 {[%emt 0:00:04]} 3. Nc3 {[%emt 0:00:05]} Bg7 {[%emt 0:00:06]} 4. e4 {[%emt 0:00:06]} d6 {[%emt 0:00:06]} 5. Nf3 {[%emt 0:00:04]} O-O {[%emt 0:00:07]} 6. Be2 {[%emt 0:00:08]} e5 {[%emt 0:00:09]} 7. Be3 {[%emt 0:00:07]} Nc6 {[%emt 0:02:07]} 8. d5 {[%emt 0:00:19]} Ne7 {[%emt 0:00:05]} 9. Nd2 {[%emt 0:00:10]} Nd7 {[%emt 0:00:12]} 10. b4 {[%emt 0:01:27]} f5 {[%emt 0:01:30]} 11. f3 {[%emt 0:00:12]} Nf6 {[%emt 0:04:19]} 12. c5 {[%emt 0:04:04]} Nh5 {[%emt 0:06:33]} 13. cxd6 {[%emt 0:06:46]} cxd6 {[%emt 0:00:22]} 14. O-O {[%emt 0:11:12]} Rf6 {[%emt 0:26:38]} 15. Rc1 {[%emt 0:09:08]} g5 {[%emt 0:08:23]} 16. Nb5 {[%emt 0:20:07]} Bd7 {[%emt 0:17:40]} 17. Nc7 {[%emt 0:07:14]} Rc8 {[%emt 0:05:33]} 18. Ne6 {[%emt 0:00:49]} Bxe6 {[%emt 0:02:44]} 19. dxe6 {[%emt 0:00:09]} Nf4 {[%emt 0:02:37]} 20. Rxc8 {[%emt 0:04:21]} Qxc8 {[%emt 0:02:45]} 21. Bc4 {[%emt 0:02:43]} Kh8 {[%emt 0:01:27]} 22. Qb1 {[%emt 0:10:36]} fxe4 {[%emt 0:06:28]} 23. fxe4 {[%emt 0:00:21]} a6 {[%emt 0:02:54]} 24. a4 {[%emt 0:03:06]} b5 {[%emt 0:03:19]} 25. axb5 {[%emt 0:00:28]} axb5 {[%emt 0:00:04]} 26. Bxb5 {[%emt 0:01:49]} Qxe6 {[%emt 0:00:22]} 27. Qd1 {[%emt 0:03:38]} Neg6 {[%emt 0:01:11]} 28. Bc4 {[%emt 0:01:42]} Qc8 {[%emt 0:00:35]} 29. Kh1 {[%emt 0:01:19]} h6 {[%emt 0:03:46]} 30. b5 {[%emt 0:02:34]} d5 {[%emt 0:01:21]} 31. exd5 {[%emt 0:00:58]} Qb7 {[%emt 0:00:35]} 32. Ne4 {[%emt 0:00:58]} Nxd5 {[%emt 0:01:13]} 33. Nxf6 {[%emt 0:04:21]} Nxe3 {[%emt 0:00:18]} 34. Qd8+ {[%emt 0:01:07]} Bf8 {[%emt 0:00:51]} 35. Bd5 {[%emt 0:01:45]} Qxb5 {[%emt 0:00:13]} 36. Rc1 {[%emt 0:01:09]} Qb2 {[%emt 0:00:45]} 37. Qc7 {[%emt 0:00:24]} Ne7 {[%emt 0:00:49]} 38. Be4 {[%emt 0:00:38]} Qa3 {[%emt 0:00:38]} 39. Qc3 {[%emt 0:00:49]} Qd6 {[%emt 0:00:27]} 40. Qxe3 {[%emt 0:00:51]} Qxf6 {[%emt 0:00:08]} 41. Bd3 {[%emt 0:00:24]} Nd5 {[%emt 0:00:55]} 42. Qe4 {[%emt 0:00:09]} Qf7 {[%emt 0:00:06]} 43. Rf1 {[%emt 0:00:43]} Nf4 {[%emt 0:00:44]} 44. g3 {[%emt 0:00:05]} Qe7 {[%emt 0:00:40]} 45. gxf4 {[%emt 0:00:22]} gxf4 {[%emt 0:00:06]} 46. Rb1 {[%emt 0:00:32]} 1-0

[Event "Amsterdam Chess Open 2024"]
[Site "Amsterdam"]
[Date "2024.11.01"]
[Round "1.15"]
[White "Garau, Francesca"]
[Black "Fasel, Ton"]
[Result "1-0"]
[ECO "B15"]
[WhiteElo "1879"]
[BlackElo "1981"]
[Annotator "RC"]
[PlyCount "111"]
[EventDate "2024.10.31"]
[EventType "swiss"]
[EventCountry "NED"]
[SourceTitle "playchess.com"]
[Source "ChessBase"]
[SourceQuality "1"]
[TimeControl "5400+30"]

1. e4 {[%emt 0:00:04]} c6 {[%emt 0:00:06]} 2. d4 {[%emt 0:00:21]} d5 {[%emt 0:00:06]} 3. Nd2 {[%emt 0:00:13]} dxe4 {[%emt 0:00:31]} 4. Nxe4 {[%emt 0:00:47]} Nf6 {[%emt 0:00:12]} 5. Nxf6+ {[%emt 0:01:34]} exf6 {[%emt 0:00:09]} 6. Bc4 {[%emt 0:01:00]} Bd6 {[%emt 0:00:25]} 7. Nf3 {[%emt 0:01:19]} O-O {[%emt 0:00:10]} 8. O-O {[%emt 0:00:16]} Bg4 {[%emt 0:00:32]} 9. h3 {[%emt 0:04:37]} Bh5 {[%emt 0:00:16]} 10. Re1 {[%emt 0:02:30]} Nd7 {[%emt 0:01:58]} 11. c3 {[%emt 0:04:32]} Nb6 {[%emt 0:00:15]} 12. Bd3 {[%emt 0:00:50]} Re8 {[%emt 0:04:01]} 13. Rxe8+ {[%emt 0:02:54]} Qxe8 {[%emt 0:00:06]} 14. c4 {[%emt 0:02:28]} Bc7 {[%emt 0:00:10]} 15. b3 {[%emt 0:04:42]} Qd7 {[%emt 0:04:10]} 16. Bb2 {[%emt 0:04:28]} Re8 {[%emt 0:00:07]} 17. Bc2 {[%emt 0:12:25]} Bb8 {[%emt 0:01:01]} 18. Qd3 {[%emt 0:01:41]} Bg6 {[%emt 0:01:58]} 19. Qd2 {[%emt 0:01:16]} Bxc2 {[%emt 0:07:18]} 20. Qxc2 {[%emt 0:00:38]} Nc8 {[%emt 0:03:39]} 21. Re1 {[%emt 0:08:49]} Nd6 {[%emt 0:05:37]} 22. Rxe8+ {[%emt 0:05:17]} Qxe8 {[%emt 0:00:05]} 23. Kf1 {[%emt 0:01:43]} h6 {[%emt 0:02:18]} 24. Qe2 {[%emt 0:08:46]} Qd7 {[%emt 0:00:04]} 25. Nd2 {[%emt 0:05:01]} f5 {[%emt 0:10:56]} 26. d5 {[%emt 0:01:36]} Ne8 {[%emt 0:13:10]} 27. dxc6 {[%emt 0:00:46]} bxc6 {[%emt 0:00:08]} 28. Nf3 {[%emt 0:01:52]} f6 {[%emt 0:14:59]} 29. Nd4 {[%emt 0:01:48]} Be5 {[%emt 0:01:44]} 30. Nf3 {[%emt 0:00:49]} Bxb2 {[%emt 0:04:55]} 31. Qxb2 {[%emt 0:00:08]} Qd1+ {[%emt 0:02:58]} 32. Ne1 {[%emt 0:00:18]} Kf7 {[%emt 0:01:25]} 33. Qe2 {[%emt 0:01:43]} Qd7 {[%emt 0:01:05]} 34. Qd3 {[%emt 0:01:00]} Qe6 {[%emt 0:00:23]} 35. Nc2 {[%emt 0:02:21]} Nd6 {[%emt 0:06:12]} 36. Nd4 {[%emt 0:01:18]} Qe5 {[%emt 0:00:06]} 37. f3 {[%emt 0:10:24]} Qc5 {[%emt 0:05:39]} 38. Qe3 {[%emt 0:02:27]} a5 {[%emt 0:01:34]} 39. Qe6+ {[%emt 0:00:33]} Kg6 {[%emt 0:00:08]} 40. Ne2 {[%emt 0:01:00]} Qe5 {[%emt 0:01:47]} 41. Qxe5 {[%emt 0:00:19]} fxe5 {[%emt 0:00:05]} 42. g3 {[%emt 0:00:43]} a4 {[%emt 0:00:36]} 43. Nc3 {[%emt 0:00:42]} axb3 {[%emt 0:00:09]} 44. axb3 {[%emt 0:00:02]} Kf6 {[%emt 0:00:13]} 45. Ke2 {[%emt 0:00:24]} g5 {[%emt 0:00:30]} 46. Kd3 {[%emt 0:00:58]} h5 {[%emt 0:00:41]} 47. g4 {[%emt 0:01:24]} e4+ {[%emt 0:03:34]} 48. fxe4 {[%emt 0:00:17]} fxg4 {[%emt 0:01:21]} 49. hxg4 {[%emt 0:00:19]} h4 {[%emt 0:00:06]} 50. Kd4 {[%emt 0:00:51]} Nf7 {[%emt 0:01:38]} 51. Nd1 {[%emt 0:00:56]} h3 {[%emt 0:01:18]} 52. Nf2 {[%emt 0:00:22]} h2 {[%emt 0:00:05]} 53. b4 {[%emt 0:01:10]} Ne5 {[%emt 0:00:01]} 54. b5 {[%emt 0:00:26]} cxb5 {[%emt 0:01:45]} 55. cxb5 {[%emt 0:00:05]} Nxg4 {[%emt 0:00:27]} 56. Nxg4+ {[%emt 0:00:06]} 1-0

[Event "Amsterdam Chess Open 2024"]
[Site "Amsterdam"]
[Date "2024.11.01"]
[Round "1.16"]
[White "Ophardt, Paul"]
[Black "Winnubst, Paul"]
[Result "0-1"]
[ECO "D35"]
[WhiteElo "1981"]
[BlackElo "1876"]
[Annotator "RC"]
[PlyCount "88"]
[EventDate "2024.10.31"]
[EventType "swiss"]
[EventCountry "NED"]
[SourceTitle "playchess.com"]
[Source "ChessBase"]
[SourceQuality "1"]
[TimeControl "5400+30"]

1. d4 {[%emt 0:00:06]} Nf6 {[%emt 0:00:07]} 2. c4 {[%emt 0:00:06]} e6 {[%emt 0:00:03]} 3. Nc3 {[%emt 0:00:05]} Bb4 {[%emt 0:00:03]} 4. Qc2 {[%emt 0:00:32]} d5 {[%emt 0:00:05]} 5. cxd5 {[%emt 0:00:08]} exd5 {[%emt 0:00:07]} 6. Bg5 {[%emt 0:00:48]} c6 {[%emt 0:03:21]} 7. e3 {[%emt 0:01:24]} O-O {[%emt 0:00:35]} 8. Bd3 {[%emt 0:00:31]} h6 {[%emt 0:00:36]} 9. Bh4 {[%emt 0:02:37]} Re8 {[%emt 0:02:37]} 10. Nge2 {[%emt 0:05:27]} Nbd7 {[%emt 0:03:47]} 11. O-O {[%emt 0:00:51]} a5 {[%emt 0:04:38]} 12. h3 {[%emt 0:06:15]} Be7 {[%emt 0:13:43]} 13. a4 {[%emt 0:11:34]} Nb8 {[%emt 0:04:44]} 14. f3 {[%emt 0:04:11]} Na6 {[%emt 0:00:59]} 15. Na2 {[%emt 0:00:57]} Nh5 {[%emt 0:08:01]} 16. Bf2 {[%emt 0:01:46]} Bh4 {[%emt 0:08:21]} 17. e4 {[%emt 0:13:06]} Bxf2+ {[%emt 0:08:17]} 18. Rxf2 {[%emt 0:03:45]} Qg5 {[%emt 0:00:12]} 19. f4 {[%emt 0:01:52]} Qh4 {[%emt 0:00:55]} 20. e5 {[%emt 0:01:19]} Nc7 {[%emt 0:07:19]} 21. f5 {[%emt 0:02:40]} Ng3 {[%emt 0:03:51]} 22. Nxg3 {[%emt 0:04:37]} Qxg3 {[%emt 0:00:05]} 23. Raf1 {[%emt 0:00:39]} Qe3 {[%emt 0:04:39]} 24. Qc3 {[%emt 0:02:07]} c5 {[%emt 0:01:22]} 25. dxc5 {[%emt 0:06:04]} Qxe5 {[%emt 0:02:02]} 26. Re2 {[%emt 0:02:28]} Qxc3 {[%emt 0:00:58]} 27. Rxe8+ {[%emt 0:00:16]} Nxe8 {[%emt 0:00:04]} 28. Nxc3 {[%emt 0:00:11]} Nf6 {[%emt 0:00:56]} 29. Rd1 {[%emt 0:06:48]} Bd7 {[%emt 0:00:48]} 30. Bc2 {[%emt 0:01:27]} Bc6 {[%emt 0:01:07]} 31. Bb3 {[%emt 0:03:35]} Rd8 {[%emt 0:01:04]} 32. Rd4 {[%emt 0:00:57]} Kf8 {[%emt 0:01:01]} 33. Kf2 {[%emt 0:04:26]} Nd7 {[%emt 0:00:42]} 34. Bxd5 {[%emt 0:01:16]} Nxc5 {[%emt 0:02:12]} 35. Ke3 {[%emt 0:01:52]} Bxd5 {[%emt 0:01:36]} 36. Rxd5 {[%emt 0:02:12]} Rxd5 {[%emt 0:00:26]} 37. Nxd5 {[%emt 0:00:07]} Nxa4 {[%emt 0:00:14]} 38. b4 {[%emt 0:00:29]} axb4 {[%emt 0:00:23]} 39. Nxb4 {[%emt 0:00:04]} Ke7 {[%emt 0:00:18]} 40. Nd5+ {[%emt 0:01:14]} Kd6 {[%emt 0:00:29]} 41. Kd4 {[%emt 0:00:27]} Nc5 {[%emt 0:00:49]} 42. g4 {[%emt 0:01:55]} Nb3+ {[%emt 0:00:07]} 43. Ke4 {[%emt 0:00:24]} Nd2+ {[%emt 0:01:17]} 44. Kd4 {[%emt 0:00:59]} Nf3+ {[%emt 0:00:12]} 0-1